fUSD/lending_fUSD_20250226
["ID","MTS","AMOUNT","RATE_DAILY","PERIOD"]
[354622278,1740595982272,-1261.87,0.00041095,120]
[354622279,1740595982281,-1258.23,0.00041095,14]
[354622280,1740595982290,-1003.98,0.00041095,14]
[354622281,1740595982299,-802.71,0.00041095,14]
[354622282,1740595982308,-1048.22,0.00041095,14]
[354622283,1740595982317,-12754.69,0.00041095,14]
[354622284,1740595982326,-760.48,0.00041095,14]
[354622285,1740595982336,-1559.74,0.00041095,14]
[354622286,1740595982345,-1039.17,0.00041095,14]
[354622287,1740595982354,-968.47,0.00041095,14]
[354622288,1740595982364,-975.3,0.00041095,14]
[354622289,1740595982373,-884.61,0.00041095,14]
[354622290,1740595982383,-677.65,0.00041095,14]
[354622291,1740595982392,-581.51,0.00041095,14]
[354622292,1740595982401,-559.35,0.00041095,14]
[354622293,1740595982413,-1068.0,0.00041095,14]
[354622294,1740595982422,-1472.3,0.00041095,14]
[354622295,1740595982432,-1096.63,0.00041095,14]
[354622296,1740595982441,-882.85,0.00041095,14]
[354622297,1740595982451,-505.62,0.00041095,14]
[354622298,1740595982460,-1708.56,0.00041095,14]
[354622299,1740595982469,-966.9,0.00041095,14]
[354622300,1740595982478,-1141.53,0.00041095,7]
[354622301,1740595982487,-1382.5,0.00041095,14]
[354622302,1740595982496,-811.04,0.00041095,14]
[354622303,1740595982505,-669.94,0.00041095,14]
[354622304,1740595982514,-691.77,0.00041095,14]
[354622305,1740595982523,-530.0,0.00041095,14]
[354622306,1740595982532,-1910.93,0.00041095,14]
[354622307,1740595982542,-500.0,0.00041095,14]
[354622308,1740595982551,-874.49,0.00041095,14]
[354622309,1740595982560,-776.22,0.00041095,14]
[354622310,1740595982569,-2493.41,0.00041095,14]
[354622311,1740595982578,-811.0,0.00041095,14]
[354622312,1740595982588,-2143.28,0.00041095,14]
[354622313,1740595982597,-2617.36,0.00041095,14]
[354622314,1740595982606,-1621.78,0.00041095,14]
[354622315,1740595982614,-2319.53,0.00041095,14]
[354622316,1740595982623,-500.0,0.00041095,14]
[354622317,1740595982632,-170.14142269,0.00041095,14]
[354622318,1740595982642,-529.04,0.00041095,14]
[354622319,1740595982651,-768.45,0.00041095,14]
[354622320,1740595982662,-500.0,0.00041095,14]
[354622321,1740595982671,-1163.2,0.00041095,14]
[354622322,1740595982680,-551.1,0.00041095,14]
[354622323,1740595982690,-501.05008533,0.00041095,14]
[354622324,1740595982699,-911.1,0.00041095,14]
[354622325,1740595982708,-2143.46,0.00041095,14]
[354622326,1740595982718,-1280.98,0.00041095,14]
[354622327,1740595982727,-500.0,0.00041095,14]
[354622328,1740595982736,-1855.75,0.00041095,14]
[354622329,1740595982745,-873.58,0.00041095,14]
[354622330,1740595982755,-939.46,0.00041095,14]
[354622331,1740595982764,-1902.32,0.00041095,14]
[354622332,1740595982773,-1142.01,0.00041095,14]
[354622333,1740595982783,-938.37,0.00041095,14]
[354622334,1740595982792,-800.79,0.00041095,14]
[354622335,1740595982802,-512.47,0.00041095,14]
[354622336,1740595982811,-2507.28,0.00041095,2]
[354622337,1740595982820,-731.9,0.00041095,14]
[354622338,1740595982829,-1276.51,0.00041095,14]
[354622339,1740595982839,-1981.71,0.00041095,14]
[354622340,1740595982848,-708.24,0.00041095,14]
[354622341,1740595982858,-377.32692519,0.00041095,14]
[354622342,1740595982868,-2733.74,0.00041095,14]
[354622343,1740595982877,-2252.01,0.00041095,14]
[354622344,1740595982886,-891.14,0.00041095,14]
[354622345,1740595982896,-552.36,0.00041095,14]
[354622346,1740595982905,-630.12,0.00041095,14]
[354622347,1740595982918,-642.98,0.00041095,14]
[354622348,1740595982928,-1991.31,0.00041095,14]
[354622349,1740595982937,-1022.27,0.00041095,14]
[354622350,1740595982948,-1294.07,0.00041095,14]
[354622351,1740595982958,-1853.21,0.00041095,14]
[354622352,1740595982967,-630.96,0.00041095,14]
[354622353,1740595982980,-1573.28,0.00041095,14]
[354622354,1740595982989,-2426.57,0.00041095,14]
[354622355,1740595982999,-2490.78,0.00041095,14]
[354622356,1740595983008,-1150.32,0.00041095,14]
[354622357,1740595983018,-715.02,0.00041095,14]
[354622358,1740595983031,-3484.94,0.00041095,14]
[354622359,1740595983041,-2771.33,0.00041095,14]
[354622360,1740595983052,-1596.62,0.00041095,14]
[354622361,1740595983063,-1876.78,0.00041095,14]
[354622362,1740595983073,-1560.4,0.00041095,14]
[354622363,1740595983083,-6192.85,0.00041095,14]
[354622364,1740595983093,-647.32,0.00041095,14]
[354622365,1740595983102,-1726.29,0.00041095,14]
[354622366,1740595983112,-1676.26,0.00041095,14]
[354622367,1740595983122,-2725.95,0.00041095,14]
[354622368,1740595983132,-563.72,0.00041095,14]
[354622369,1740595983142,-944.42,0.00041095,14]
[354622370,1740595983152,-3837.57,0.00041095,14]
[354622371,1740595983165,-1361.35,0.00041095,14]
[354622372,1740595983176,-1302.57,0.00041095,14]
[354622373,1740595983187,-688.53,0.00041095,14]
[354622374,1740595983197,-11693.75,0.00041095,14]
[354622375,1740595983207,-861.86,0.00041095,14]
[354622376,1740595983217,-3063.11,0.00041095,14]
[354622377,1740595983227,-1132.99,0.00041095,14]
[354622378,1740595983237,-2812.52,0.00041095,14]
[354622379,1740595983247,-2332.02,0.00041095,14]
[354622380,1740595983258,-3032.5,0.00041095,14]
[354622381,1740595983268,-1403.52,0.00041095,14]
[354622382,1740595983278,-2514.92,0.00041095,14]
[354622383,1740595983288,-840.17,0.00041095,14]
[354622384,1740595983297,-3285.15,0.00041095,14]
[354622385,1740595983307,-1217.25,0.00041095,14]
[354622386,1740595983317,-2864.92,0.00041095,14]
[354622387,1740595983326,-829.58,0.00041095,14]
[354622388,1740595983336,-521.32,0.00041095,14]
[354622389,1740595983345,-1548.49,0.00041095,14]
[354622390,1740595983355,-1797.4,0.00041095,14]
[354622391,1740595983364,-3783.79,0.00041095,14]
[354622392,1740595983374,-577.91,0.00041095,14]
[354622393,1740595983384,-1141.09,0.00041095,14]
[354622394,1740595983393,-2194.13,0.00041095,14]
[354622395,1740595983403,-2625.14,0.00041095,14]
[354622396,1740595983415,-1289.77,0.00041095,14]
[354622397,1740595983424,-564.43,0.00041095,14]
[354622398,1740595983434,-6297.9,0.00041095,14]
[354622399,1740595983443,-2622.68,0.00041095,14]
[354622400,1740595983453,-3149.85,0.00041095,14]
[354622401,1740595983463,-806.4,0.00041095,14]
[354622402,1740595983473,-2632.85,0.00041095,14]
[354622403,1740595983483,-2112.2,0.00041095,14]
[354622404,1740595983493,-3833.32,0.00041095,14]
[354622405,1740595983502,-1648.8,0.00041095,14]
[354622406,1740595983512,-5487.93,0.00041095,14]
[354622407,1740595983521,-974.58,0.00041095,14]
[354622408,1740595983530,-565.43,0.00041095,14]
[354622409,1740595983539,-1343.0,0.00041095,14]
[354622410,1740595983549,-2311.59,0.00041095,14]
[354622411,1740595983558,-11841.49,0.00041095,14]
[354622412,1740595983568,-567.13,0.00041095,14]
[354622413,1740595983577,-3413.54,0.00041095,14]
[354622414,1740595983586,-1833.27,0.00041095,14]
[354622415,1740595983595,-995.26,0.00041095,14]
[354622416,1740595983605,-3517.26,0.00041095,14]
[354622417,1740595983615,-1238.69,0.00041095,14]
[354622418,1740595983625,-1700.63,0.00041095,14]
[354622419,1740595983635,-2752.94,0.00041095,14]
[354622420,1740595983644,-1862.26,0.00041095,14]
[354622421,1740595983654,-4507.25,0.00041095,14]
[354622422,1740595983666,-7439.57,0.00041095,14]
[354622423,1740595983676,-1154.79,0.00041095,14]
[354622424,1740595983687,-639.34,0.00041095,14]
[354622425,1740595983696,-1572.85,0.00041095,14]
[354622426,1740595983706,-3421.4,0.00041095,14]
[354622427,1740595983715,-1778.87,0.00041095,14]
[354622428,1740595983725,-1616.96,0.00041095,14]
[354622429,1740595983734,-696.16,0.00041095,14]
[354622430,1740595983743,-9182.73,0.00041095,14]
[354622431,1740595983753,-6709.93,0.00041095,14]
[354622432,1740595983762,-683.41,0.00041095,14]
[354622433,1740595983772,-682.72,0.00041095,14]
[354622434,1740595983782,-4316.65,0.00041095,14]
[354622435,1740595983792,-546.58,0.00041095,14]
[354622436,1740595983801,-3317.95,0.00041095,14]
[354622437,1740595983810,-1576.59,0.00041095,14]
[354622438,1740595983820,-604.02,0.00041095,14]
[354622439,1740595983829,-682.23,0.00041095,14]
[354622440,1740595983838,-876.15,0.00041095,14]
[354622441,1740595983848,-1898.38,0.00041095,14]
[354622442,1740595983857,-3418.9,0.00041095,14]
[354622443,1740595983867,-749.16,0.00041095,14]
[354622444,1740595983876,-2938.03,0.00041095,14]
[354622445,1740595983886,-1228.02,0.00041095,14]
[354622446,1740595983895,-2258.95,0.00041095,14]
[354622447,1740595983905,-1052.77,0.00041095,14]
[354622448,1740595983916,-220.16648543,0.00041095,14]
[354622449,1740595983926,-932.43,0.00041095,14]
[354622450,1740595983936,-1087.18,0.00041095,14]
[354622451,1740595983946,-3770.5,0.00041095,14]
[354622452,1740595983955,-4443.37,0.00041095,14]
[354622453,1740595983965,-841.55,0.00041095,14]
[354622454,1740595983978,-4370.98,0.00041095,14]
[354622455,1740595983988,-1077.8,0.00041095,14]
[354622456,1740595983998,-1662.55,0.00041095,14]
[354622457,1740595984008,-1684.75,0.00041095,14]
[354622458,1740595984018,-732.3,0.00041095,14]
[354622459,1740595984032,-669.42,0.00041095,14]
[354622460,1740595984043,-2153.43,0.00041095,14]
[354622461,1740595984052,-2455.03,0.00041095,14]
[354622462,1740595984062,-500.0,0.00041095,14]
[354622463,1740595984073,-8707.22,0.00041095,14]
[354622464,1740595984082,-555.94,0.00041095,14]
[354622465,1740595984091,-661.77,0.00041095,14]
[354622466,1740595984100,-1962.86,0.00041095,14]
[354622467,1740595984110,-1465.58,0.00041095,14]
[354622468,1740595984119,-14121.36,0.00041095,14]
[354622469,1740595984130,-3029.66,0.00041095,14]
[354622470,1740595984140,-3158.55,0.00041095,14]
[354622471,1740595984150,-677.06,0.00041095,14]
[354622472,1740595984161,-1234.59,0.00041095,14]
[354622473,1740595984171,-1124.82,0.00041095,14]
[354622474,1740595984181,-1087.29,0.00041095,14]
[354622475,1740595984191,-1184.83,0.00041095,14]
[354622476,1740595984200,-766.23,0.00041095,14]
[354622477,1740595984209,-1001.3,0.00041095,14]
[354622478,1740595984219,-617.69,0.00041095,14]
[354622479,1740595984228,-1731.67,0.00041095,14]
[354622480,1740595984239,-3138.97,0.00041095,14]
[354622481,1740595984248,-527.05,0.00041095,14]
[354622482,1740595984258,-1244.63,0.00041095,14]
[354622483,1740595984268,-850.11,0.00041095,14]
[354622484,1740595984277,-2099.68,0.00041095,14]
[354622485,1740595984286,-1394.32,0.00041095,14]
[354622486,1740595984296,-1086.92,0.00041095,14]
[354622487,1740595984305,-1256.63,0.00041095,14]
[354622488,1740595984314,-1776.24,0.00041095,14]
[354622489,1740595984323,-3802.94,0.00041095,14]
[354622490,1740595984333,-772.03,0.00041095,14]
[354622491,1740595984343,-500.0,0.00041095,14]
[354622492,1740595984352,-773.62,0.00041095,14]
[354622493,1740595984362,-666.36,0.00041095,14]
[354622494,1740595984372,-1317.17,0.00041095,14]
[354622495,1740595984382,-1507.85,0.00041095,14]
[354622496,1740595984392,-1264.32,0.00041095,14]
[354622497,1740595984402,-4383.06,0.00041095,14]
[354622498,1740595984414,-2961.3,0.00041095,14]
[354622499,1740595984423,-1388.89,0.00041095,14]
[354622500,1740595984433,-556.93,0.00041095,14]
[354622501,1740595984442,-3155.81,0.00041095,14]
[354622502,1740595984451,-561.98,0.00041095,14]
[354622503,1740595984461,-2270.77,0.00041095,14]
[354622504,1740595984471,-1500.0,0.00041096,120]
[354622505,1740595984480,-280.14879182,0.00041096,2]
[354622506,1740595984490,-327.27937672,0.00041105,2]
[354622507,1740595984499,-1749.77,0.00041123,120]
[354622508,1740595984508,-1749.77,0.0004115,120]
[354622509,1740595984518,-1749.77,0.00041178,120]
[354622510,1740595984527,-300.0,0.000412,2]
[354622511,1740595984536,-300.0,0.000412,2]
[354622512,1740595984546,-1749.77,0.00041205,120]
[354622513,1740595984556,-377.46614524,0.00041205,30]
[354622514,1740595984565,-1749.77,0.00041232,120]
[354622515,1740595984575,-1749.77,0.0004126,120]
[354622516,1740595984584,-152.0,0.00041273,4]
[354622517,1740595984594,-1749.77,0.00041287,120]
[354622518,1740595984603,-1749.77,0.00041315,120]
[354622519,1740595984612,-1749.77,0.00041342,120]
[354622520,1740595984622,-1000.65741128,0.00041352,10]
[354622521,1740595984631,-1000.0,0.00041352,10]
[354622522,1740595984642,-1000.0,0.00041352,10]
[354622523,1740595984651,-767.21590202,0.00041352,10]
[354622524,1740595984664,-672.636069,0.00041369,14]
[354622525,1740595984674,-676.71,0.00041369,14]
[354622526,1740595984683,-1501.590989,0.00041369,14]
[354622527,1740595984693,-870.39,0.00041369,14]
[354622528,1740595984703,-814.89,0.00041369,14]
[354622529,1740595984712,-1069.27,0.00041369,14]
[354622530,1740595984722,-1090.2,0.00041369,14]
[354622531,1740595984731,-1150.39,0.00041369,14]
[354622532,1740595984741,-701.36,0.00041369,14]
[354622533,1740595984751,-841.82,0.00041369,14]
[354622534,1740595984761,-670.19,0.00041369,14]
[354622535,1740595984771,-1844.05,0.00041369,14]
[354622536,1740595984780,-747.92,0.00041369,14]
[354622537,1740595984789,-835.83,0.00041369,14]
[354622538,1740595984800,-738.6,0.00041369,14]
[354622539,1740595984809,-1533.87,0.00041369,14]
[354622540,1740595984819,-1414.25,0.00041369,14]
[354622541,1740595984828,-865.08,0.00041369,14]
[354622542,1740595984838,-633.98,0.00041369,14]
[354622543,1740595984848,-600.33,0.00041369,14]
[354622544,1740595984858,-580.36,0.00041369,14]
[354622545,1740595984867,-742.35,0.00041369,14]
[354622546,1740595984877,-732.49,0.00041369,14]
[354622547,1740595984887,-527.1,0.00041369,14]
[354622548,1740595984897,-500.0,0.00041369,14]
[354622549,1740595984906,-935.03,0.00041369,14]
[354622550,1740595984919,-581.31,0.00041369,14]
[354622551,1740595984929,-689.42,0.00041369,14]
[354622552,1740595984939,-689.49,0.00041369,14]
[354622553,1740595984949,-543.41,0.00041369,14]
[354622554,1740595984959,-571.34,0.00041369,14]
[354622555,1740595984968,-696.87,0.00041369,14]
[354622556,1740595984979,-1290.39,0.00041369,14]
[354622557,1740595984989,-546.44,0.00041369,14]
[354622558,1740595984998,-594.86,0.00041369,14]
[354622559,1740595985009,-635.18,0.00041369,14]
[354622560,1740595985018,-617.43,0.00041369,14]
[354622561,1740595985035,-858.4,0.00041369,14]
[354622562,1740595985046,-665.21,0.00041369,14]
[354622563,1740595985055,-500.0,0.00041369,14]
[354622564,1740595985065,-1850.02,0.00041369,14]
[354622565,1740595985075,-1161.63,0.00041369,14]
[354622566,1740595985084,-1036.04,0.00041369,14]
[354622567,1740595985094,-2240.29,0.00041369,14]
[354622568,1740595985104,-608.93,0.00041369,14]
[354622569,1740595985115,-2310.8,0.00041369,14]
[354622570,1740595985126,-394.43008082,0.00041369,14]
[354622571,1740595985136,-1018.81,0.00041369,14]
[354622572,1740595985146,-871.69,0.00041369,14]
[354622573,1740595985160,-1006.27,0.00041369,14]
[354622574,1740595985171,-595.91,0.00041369,14]
[354622575,1740595985182,-1116.49,0.00041369,14]
[354622576,1740595985193,-641.45,0.00041369,14]
[354622577,1740595985205,-772.83,0.00041369,14]
[354622578,1740595985217,-1308.99,0.00041369,14]
[354622579,1740595985227,-872.15,0.00041369,14]
[354622580,1740595985238,-935.7,0.00041369,14]
[354622581,1740595985247,-649.25,0.00041369,14]
[354622582,1740595985257,-1082.33,0.00041369,14]
[354622583,1740595985267,-500.0,0.00041369,14]
[354622584,1740595985278,-513.39,0.00041369,14]
[354622585,1740595985288,-1176.81,0.00041369,14]
[354622586,1740595985298,-1686.11,0.00041369,14]
[354622587,1740595985308,-547.24,0.00041369,14]
[354622588,1740595985319,-538.09,0.00041369,14]
[354622589,1740595985328,-811.61,0.00041369,14]
[354622590,1740595985338,-1804.38,0.00041369,14]
[354622591,1740595985347,-969.08,0.00041369,14]
[354622592,1740595985358,-2234.9,0.00041369,14]
[354622593,1740595985368,-877.13,0.00041369,14]
[354622594,1740595985378,-582.64,0.00041369,14]
[354622595,1740595985387,-500.0,0.00041369,14]
[354622596,1740595985397,-1855.35,0.00041369,14]
[354622597,1740595985407,-308.04411196,0.00041369,14]
[354622598,1740595985420,-1019.59,0.00041369,14]
[354622599,1740595985430,-2120.11,0.00041369,14]
[354622600,1740595985440,-1021.29,0.00041369,14]
[354622601,1740595985450,-1613.94,0.00041369,14]
[354622602,1740595985460,-572.27,0.00041369,14]
[354622603,1740595985469,-982.48,0.00041369,14]
[354622604,1740595985480,-1105.78,0.00041369,14]
[354622605,1740595985490,-2258.29,0.00041369,14]
[354622606,1740595985499,-1496.14,0.00041369,14]
[354622607,1740595985508,-1313.98,0.00041369,14]
[354622608,1740595985518,-782.62,0.00041369,14]
[354622609,1740595985527,-633.15,0.00041369,14]
[354622610,1740595985537,-1614.67,0.00041369,14]
[354622611,1740595985546,-2802.17,0.00041369,120]
[354622612,1740595985555,-777.94,0.00041369,14]
[354622613,1740595985564,-1119.74,0.00041369,14]
[354622614,1740595985573,-630.05,0.00041369,14]
[354622615,1740595985583,-500.0,0.00041369,14]
[354622616,1740595985592,-1550.01,0.00041369,14]
[354622617,1740595985601,-898.54,0.00041369,14]
[354622618,1740595985610,-666.5,0.00041369,14]
[354622619,1740595985619,-986.29,0.00041369,14]
[354622620,1740595985629,-1800.45,0.00041369,14]
[354622621,1740595985638,-1038.19,0.00041369,14]
[354622622,1740595985648,-722.35,0.00041369,14]
[354622623,1740595985659,-777.79,0.00041369,14]
[354622624,1740595985669,-583.31,0.00041369,14]
[354622625,1740595985679,-1016.47,0.00041369,14]
[354622626,1740595985688,-529.67,0.00041369,14]
[354622627,1740595985697,-746.65,0.00041369,14]
[354622628,1740595985707,-806.05,0.00041369,14]
[354622629,1740595985717,-886.7,0.00041369,14]
[354622630,1740595985726,-820.28,0.00041369,14]
[354622631,1740595985736,-1501.14,0.00041369,14]
[354622632,1740595985745,-921.34,0.00041369,14]
[354622633,1740595985755,-699.59,0.00041369,14]
[354622634,1740595985764,-1003.76,0.00041369,14]
[354622635,1740595985774,-1495.63,0.00041369,14]
[354622636,1740595985783,-834.44,0.00041369,14]
[354622637,1740595985793,-831.3,0.00041369,14]
[354622638,1740595985803,-675.74,0.00041369,14]
[354622639,1740595985812,-917.03,0.00041369,14]
[354622640,1740595985886,-551.68,0.00041369,14]
[354622641,1740595985923,-681.62,0.00041369,14]
[354622642,1740595985932,-1958.47,0.00041369,14]
[354622643,1740595985942,-1067.6,0.00041369,14]
[354622644,1740595985952,-500.0,0.00041369,14]
[354622645,1740595985963,-636.63,0.00041369,14]
[354622646,1740595985974,-1007.51,0.00041369,14]
[354622647,1740595985988,-826.67,0.00041369,14]
[354622648,1740595985998,-532.65,0.00041369,14]
[354622649,1740595986008,-1255.98,0.00041369,14]
[354622650,1740595986018,-1084.65,0.00041369,14]
[354622651,1740595986032,-510.04,0.00041369,14]
[354622652,1740595986042,-1749.77,0.00041369,120]
[354622653,1740595986052,-1101.48,0.00041369,14]
[354622654,1740595986062,-634.72,0.00041369,14]
[354622655,1740595986073,-842.79,0.00041369,14]
[354622656,1740595986082,-861.46,0.00041369,14]
[354622657,1740595986094,-765.4,0.00041369,14]
[354622658,1740595986104,-604.9,0.00041369,14]
[354622659,1740595986115,-1116.67,0.00041369,14]
[354622660,1740595986124,-462.96965257,0.00041369,14]
[354622661,1740595986134,-1441.7,0.00041369,14]
[354622662,1740595986143,-754.28,0.00041369,14]
[354622663,1740595986153,-929.23,0.00041369,14]
[354622664,1740595986165,-718.11,0.00041369,14]
[354622665,1740595986174,-1403.66,0.00041369,14]
[354622666,1740595986184,-1217.5,0.00041369,14]
[354622667,1740595986194,-1107.15,0.00041369,14]
[354622668,1740595986204,-1834.12,0.00041369,14]
[354622669,1740595986213,-902.19,0.00041369,14]
[354622670,1740595986223,-561.55,0.00041369,14]
[354622671,1740595986232,-565.94,0.00041369,14]
[354622672,1740595986241,-1996.52,0.00041369,14]
[354622673,1740595986251,-459.56673879,0.00041369,14]
[354622674,1740595986260,-563.43,0.00041369,14]
[354622675,1740595986270,-1467.19,0.00041369,14]
[354622676,1740595986280,-1321.18,0.00041369,14]
[354622677,1740595986290,-1902.42,0.00041369,14]
[354622678,1740595986300,-1140.97,0.00041369,14]
[354622679,1740595986309,-528.46,0.00041369,14]
[354622680,1740595986319,-651.71,0.00041369,14]
[354622681,1740595986328,-1073.87,0.00041369,14]
[354622682,1740595986338,-1235.9,0.00041369,14]
[354622683,1740595986347,-583.0,0.00041369,14]
[354622684,1740595986357,-642.59,0.00041369,14]
[354622685,1740595986367,-1162.07,0.00041369,14]
[354622686,1740595986377,-1175.03,0.00041369,14]
[354622687,1740595986386,-500.0,0.00041369,14]
[354622688,1740595986397,-1123.12,0.00041369,14]
[354622689,1740595986406,-1360.38,0.00041369,14]
[354622690,1740595986419,-990.04,0.00041369,14]
[354622691,1740595986428,-500.0,0.00041369,14]
[354622692,1740595986439,-758.81,0.00041369,14]
[354622693,1740595986448,-1858.11,0.00041369,14]
[354622694,1740595986458,-836.2,0.00041369,14]
[354622695,1740595986468,-743.78,0.00041369,14]
[354622696,1740595986478,-552.16,0.00041369,14]
[354622697,1740595986487,-957.01,0.00041369,14]
[354622698,1740595986497,-1949.61,0.00041369,14]
[354622699,1740595986507,-1008.01,0.00041369,14]
[354622700,1740595986516,-1466.22,0.00041369,14]
[354622701,1740595986526,-1152.19,0.00041369,14]
[354622702,1740595986536,-2482.2,0.00041369,14]
[354622703,1740595986545,-1828.52,0.00041369,14]
[354622704,1740595986555,-527.63,0.00041369,14]
[354622705,1740595986564,-873.77,0.00041369,14]
[354622706,1740595986574,-1665.67,0.00041369,14]
[354622707,1740595986583,-500.0,0.00041369,14]
[354622708,1740595986593,-1934.6,0.00041369,14]
[354622709,1740595986602,-786.06,0.00041369,14]
[354622710,1740595986612,-1875.12,0.00041369,14]
[354622711,1740595986622,-1075.72,0.00041369,14]
[354622712,1740595986631,-554.85,0.00041369,14]
[354622713,1740595986641,-956.32,0.00041369,14]
[354622714,1740595986650,-500.0,0.00041369,14]
[354622715,1740595986660,-1163.37,0.00041369,14]
[354622716,1740595986669,-1037.67,0.00041369,14]
[354622717,1740595986679,-2110.11,0.00041369,14]
[354622718,1740595986689,-655.67,0.00041369,14]
[354622719,1740595986699,-519.01,0.00041369,14]
[354622720,1740595986709,-754.12,0.00041369,14]
[354622721,1740595986719,-1351.39,0.00041369,14]
[354622722,1740595986729,-1595.01,0.00041369,14]
[354622723,1740595986738,-883.23,0.00041369,14]
[354622724,1740595986748,-978.64,0.00041369,14]
[354622725,1740595986758,-544.48,0.00041369,14]
[354622726,1740595986768,-1282.93,0.00041369,14]
[354622727,1740595986777,-1979.65,0.00041369,14]
[354622728,1740595986787,-1465.82,0.00041369,14]
[354622729,1740595986796,-1395.89,0.00041369,14]
[354622730,1740595986805,-854.86,0.00041369,14]
[354622731,1740595986815,-1505.0,0.00041369,14]
[354622732,1740595986825,-924.09,0.00041369,14]
[354622733,1740595986835,-711.08,0.00041369,14]
[354622734,1740595986845,-552.43,0.00041369,14]
[354622735,1740595986855,-895.76,0.00041369,14]
[354622736,1740595986865,-932.59,0.00041369,14]
[354622737,1740595986876,-1558.86,0.00041369,14]
[354622738,1740595986886,-912.19,0.00041369,14]
[354622739,1740595986895,-551.46,0.00041369,14]
[354622740,1740595986906,-3271.55,0.00041369,14]
[354622741,1740595986921,-3117.32,0.00041369,14]
[354622742,1740595986931,-896.05,0.00041369,14]
[354622743,1740595986941,-1469.5,0.00041369,14]
[354622744,1740595986951,-1970.34,0.00041369,14]
[354622745,1740595986961,-1219.67,0.00041369,14]
[354622746,1740595986971,-1261.87,0.00041369,120]
[354622747,1740595986985,-1258.23,0.00041369,14]
[354622748,1740595986997,-1003.98,0.00041369,14]
[354622749,1740595987007,-802.71,0.00041369,14]
[354622750,1740595987017,-1048.22,0.00041369,14]
[354622751,1740595987029,-12754.69,0.00041369,14]
[354622752,1740595987046,-760.48,0.00041369,14]
[354622753,1740595987055,-1559.74,0.00041369,14]
[354622754,1740595987065,-1039.17,0.00041369,14]
[354622755,1740595987076,-968.47,0.00041369,14]
[354622756,1740595987086,-975.3,0.00041369,14]
[354622757,1740595987096,-884.61,0.00041369,14]
[354622758,1740595987106,-677.65,0.00041369,14]
[354622759,1740595987115,-581.51,0.00041369,14]
[354622760,1740595987125,-559.35,0.00041369,14]
[354622761,1740595987134,-1068.0,0.00041369,14]
[354622762,1740595987144,-1472.3,0.00041369,14]
[354622763,1740595987153,-1096.63,0.00041369,14]
[354622764,1740595987166,-882.85,0.00041369,14]
[354622765,1740595987176,-505.62,0.00041369,14]
[354622766,1740595987187,-1708.56,0.00041369,14]
[354622767,1740595987197,-966.9,0.00041369,14]
[354622768,1740595987208,-1141.53,0.00041369,7]
[354622769,1740595987218,-1382.5,0.00041369,14]
[354622770,1740595987228,-811.04,0.00041369,14]
[354622771,1740595987238,-669.94,0.00041369,14]
[354622772,1740595987248,-691.77,0.00041369,14]
[354622773,1740595987257,-530.0,0.00041369,14]
[354622774,1740595987267,-1910.93,0.00041369,14]
[354622775,1740595987278,-500.0,0.00041369,14]
[354622776,1740595987288,-874.49,0.00041369,14]
[354622777,1740595987298,-776.22,0.00041369,14]